Cogmind - Beta 16 @@@ ROGUE MODE // 2025.12.30 @ 22:20:58 Player: Bity Result: Destroyed by G-34 Mercenary with Small Laser Performance ------------- Evolutions (1) 500 Regions Visited (2) 400 Robots Destroyed (42) 210 Value Destroyed (703) 703 Prototype IDs (2) 40 Alien Tech Used (0) 0 Bonus (0) 0 TOTAL SCORE: 1853 Bonus ------- None Cogmind --------- Core Integrity 0/400 Matter 262/300 Energy 250/250 System Corruption 0% Temperature Cool (6) Movement Treading (200) Ox1 Location -9/Materials Parts ------- > --- POWER (1) -------- Ion Engine > --- PROPULSION (2) --- Light Treads Light Treads > --- UTILITY (4) ------ Heat Sink Heat Sink High-capacity Storage Unit Weapon Shielding > --- WEAPON (2) ------- Assault Rifle Heavy Assault Rifle > --- INVENTORY (20) --- Light Ion Engine Aluminum Leg Aluminum Leg Aluminum Leg Aluminum Leg Wheel VTOL Module Small Storage Unit Huge Storage Unit Small Laser Beam Rifle Light Assault Rifle Light Assault Rifle Light Assault Rifle Light Assault Rifle Light Assault Rifle Hammer Peak State ------------ > --- POWER ------------ Ion Engine > --- PROPULSION ------- Light Treads Light Treads > --- UTILITY ---------- Heat Sink Heat Sink High-capacity Storage Unit Medium Armor Plating > --- WEAPON ----------- Assault Rifle Heavy Assault Rifle > --- INVENTORY -------- Light Ion Engine Light Treads Aluminum Leg Aluminum Leg Aluminum Leg Aluminum Leg Wheel VTOL Module Small Storage Unit Huge Storage Unit Small Laser Beam Rifle Light Assault Rifle Light Assault Rifle Light Assault Rifle Light Assault Rifle Light Assault Rifle Hammer [Rating: 13] Favorites ----------- Power Light Ion Engine Engine Light Ion Engine Propulsion Light Treads Treads Light Treads Leg Aluminum Leg Wheel Wheel Utility High-capacity Storage Unit Device Heat Sink Storage High-capacity Storage Unit Protection Medium Armor Plating Weapon Medium Laser Energy Gun Medium Laser Ballistic Gun Assault Rifle Special Weapon Mining Laser Impact Weapon Hammer Build | -11 -10 -9 ------- Run | Yrd Mat Mat Slots Evolved 2 | . . 2 Power . | . . . Propulsion . | . . . Utility 2 | . . 2 Weapon . | . . . Parts Attached 24 | 1 7 16 Power 2 | . . 2 Engine 2 | . . 2 Core . | . . . Reactor . | . . . Propulsion 6 | . 2 4 Treads 4 | . . 4 Leg . | . . . Wheel 2 | . 2 . Hover . | . . . Flight . | . . . Utility 8 | 1 2 5 Device 5 | 1 1 3 Storage 1 | . 1 . Processor . | . . . Hackware . | . . . Protection 2 | . . 2 Artifact . | . . . Weapon 8 | . 3 5 Energy Gun 2 | . 2 . Energy Cannon . | . . . Ballistic Gun 4 | . . 4 Ballistic Cannon . | . . . Launcher . | . . . Special Weapon 1 | . 1 . Impact Weapon 1 | . . 1 Slashing Weapon . | . . . Piercing Weapon . | . . . Special Melee Weapon . | . . . Unidentified Prototypes . | . . . Parts Lost 13 | . 1 12 Power 2 | . . 2 Propulsion 3 | . . 3 Utility 4 | . 1 3 Weapon 4 | . . 4 Highest Loss Streak 4 | . 1 4 To Critical Strikes . | . . . Average Backups 13 | 6 10 16 Power 1 | 1 1 1 Propulsion 5 | 4 4 6 Utility 1 | . 2 2 Weapon 4 | 1 2 6 Tool/Special . | . . . Unused Backups 12 | . . 12 Power 1 | . . 1 Propulsion 3 | . . 3 Utility 2 | . . 2 Weapon 6 | . . 6 Tool/Special . | . . . Average Slot Usage (%) 92 | . 99 86 Engine 11 | . 14 10 Treads 10 | . . 17 Leg 1 | . 2 . Wheel 12 | . 25 2 Device 15 | . 13 16 Storage 12 | . 14 11 Protection 3 | . . 6 Energy Gun 11 | . 24 1 Ballistic Gun 12 | . 3 18 Peak Build Rating 13 | 7 8 13 Average Rating 8 | 6 7 10 On Entrance 7 | 6 7 8 Avg Prop Armor Cover (%) . | . . . Naked Turns . | . . . Heaviest Build 59 | 13 48 59 Greatest Support 40 | 20 20 40 Greatest Overweight (x) 4 | . 2 4 Average Overweight (x) 1 | . 1 1 Largest Inventory Capacity 20 | 8 20 20 Average Capacity 18 | 8 19 20 Most Carried 19 | 8 17 19 Average Carried 13 | 6 10 16 Final Capacity 20 | 8 20 20 Final Carried 17 | 7 17 17 Class Distribution -------------------- 100% | Mutant Dominant Class ---------------- Mutant | -10/Materials Mutant | -9/Materials Resources | -11 -10 -9 ----------- Run | Yrd Mat Mat Matter Collected 617 | 240 80 297 Remotely . | . . . Salvage Created 1087 | 184 265 638 Parts 86 | 13 19 54 Haulers Intercepted 1 | . 1 . Recyclers Shooed 1 | 1 . . Parts Field Recycled . | . . . Retrieved Matter . | . . . Parts Self-Destructed . | . . . Prevented . | . . . Parts Restored . | . . . Kills | -11 -10 -9 ------- Run | Yrd Mat Mat Combat Hostiles Destroyed 31 | . 8 23 Melee 2 | . . 2 Guns 29 | . 8 21 Classes Destroyed 7 | 2 4 1 Tunneler 5 | 5 . . Hauler 1 | . 1 . Recycler 1 | 1 . . Watcher 4 | . 2 2 Swarmer 20 | . 6 14 Grunt 9 | . 2 7 Sentry 2 | . . 2 Best Kill Streak 7 | 4 6 7 Combat Bots Only 7 | . 5 7 Max Kills in Single Turn 2 | 1 2 2 Gunslinging 1 | . . 1 Exploded . | . . . Melee 1 | . . 1 Uniques/NPCs Destroyed . | . . . Combat | -11 -10 -9 -------- Run | Yrd Mat Mat Hostile Shots Fired 248 | . 28 220 Missed 70 | . 7 63 Hits 178 | . 21 157 Projectile 178 | . 21 157 Critical Strikes 1 | . . 1 Damage Taken 1727 | . 202 1525 Core 475 | . 71 404 Absorbed by Shields . | . . . Redirected to Shielding 3 | . . 3 Core Remaining (%) 85 | 100 71 . Volleys Fired 89 | 10 23 56 Largest 2 | 2 2 2 Hottest 150 | 70 150 150 Shots Fired 176 | 20 46 110 Gun 173 | 20 45 108 Cannon . | . . . Launcher . | . . . Special 3 | . 1 2 Kinetic 105 | 10 . 95 Thermal 71 | 10 46 15 Explosive . | . . . Electromagnetic . | . . . Robot Hit Streak 14 | 4 13 14 Robot Miss Streak 4 | 2 2 4 Penetration Max . | . . . Secondary Targets 6 | . 1 5 Max Gunslinging Chain 1 | . 1 1 Shots Hit Robots 119 | 11 31 77 Core Hits 52 | 7 14 31 Critical Kills . | . . . Critical Parts Destroyed 1 | . . 1 Critical Strikes 10 | 2 5 3 Burn 9 | 2 5 2 Destroy 1 | . . 1 Melee Attacks 5 | . . 5 Impact 5 | . . 5 Slashing . | . . . Piercing . | . . . Sneak Attacks . | . . . Combat Hostiles . | . . . Follow-up Attacks . | . . . Damage Inflicted 1515 | 147 396 972 Guns 1449 | 147 396 906 Cannons . | . . . Explosions . | . . . Melee 66 | . . 66 Ramming . | . . . Kinetic 904 | 85 . 819 Thermal 545 | 62 396 87 Explosive . | . . . Electromagnetic . | . . . Impact 66 | . . 66 Slashing . | . . . Piercing . | . . . Highest Corruption . | . . . Average Corruption . | . . . Corruption Purged . | . . . Corruption Blocked . | . . . Overload Shots . | . . . Overflow Damage 11 | . . 11 Projectiles . | . . . Explosions . | . . . Melee 11 | . . 11 Knockbacks . | . . . Impact . | . . . Kinetic . | . . . Secondary . | . . . Self-Inflicted Damage . | . . . Shots . | . . . Rammed . | . . . Targets Rammed . | . . . Kicked . | . . . Crushed . | . . . Highest Temperature 399 | 54 399 154 Average Temperature 92 | 22 124 65 Received Heat Transfer 342 | . 48 294 Siege Activations . | . . . Martial Activations . | . . . Shielding Activations . | . . . Robots Disrupted . | . . . Combat Hostiles . | . . . Robots Corrupted . | . . . Combat Hostiles . | . . . Parts Fried . | . . . Impact Corruptions 1 | . . 1 Robots Melted . | . . . Combat Hostiles . | . . . Parts Melted 10 | 1 6 3 Heat Transferred 2294 | 333 1554 407 Parts Sabotaged . | . . . Parts Stolen . | . . . Parts Stripped . | . . . Power Chain Reactions . | . . . Alert | -11 -10 -9 ------- Run | Yrd Mat Mat Maximum Alert Level 1 | . . 1 Low Security (%) 99 | 100 100 99 Level 1 . | . . . Level 2 . | . . . Level 3 . | . . . Level 4 . | . . . Level 5 . | . . . High Security . | . . . Max Security . | . . . Peak Influence 205 | 20 153 205 Initial 50 | . . 50 Average 64 | 3 30 101 Influence Increases 967 | 30 221 716 Destroy 0b10 Robot/C 620 | . 160 460 Destroy 0b10 Robot/NC 55 | 30 15 10 Destroy Leader 130 | . 36 94 Successful Hack 68 | . 9 59 Destroy Structure 4 | . 1 3 Lose Combat Pursuer 90 | . . 90 Influence Decreases 770 | 30 100 640 Entered New Map 71 | . . 71 Time Decay 435 | 30 90 315 Lost Part 130 | . 10 120 Lost Ally 10 | . . 10 Purge Threat 124 | . . 124 Squads Dispatched 4 | . 1 3 Investigation 2 | . . 2 Extermination . | . . . Reinforcement 2 | . 1 1 Assault . | . . . Garrison . | . . . Intercept . | . . . Searches Triggered . | . . . Construction Impeded . | . . . Haulers Reinforced . | . . . Active Scanning Responses . | . . . Cargo Convoy Interrupts . | . . . Stealth | -11 -10 -9 --------- Run | Yrd Mat Mat Distress Signals 5 | . 1 4 Communications Jammed . | . . . Distress Signals . | . . . Times Spotted 49 | . 13 36 Peak Tracking Total 8 | . 4 8 Tactical Retreats 3 | . . 3 Traps | -11 -10 -9 ------- Run | Yrd Mat Mat Traps Triggered . | . . . Indirectly . | . . . Trap Hack Attempts . | . . . Triggered . | . . . Disarmed . | . . . Reprogrammed . | . . . Reused . | . . . Traps Extracted . | . . . Installed . | . . . Triggered . | . . . Machines | -11 -10 -9 ---------- Run | Yrd Mat Mat Machines Disabled . | . . . Max in Single Turn . | . . . Machines Repaired . | . . . Machines Dismantled . | . . . Machines Sabotaged . | . . . Overloaded Fab Kills . | . . . Hacking | -11 -10 -9 --------- Run | Yrd Mat Mat Machines Accessed 12 | . 5 7 Terminals 10 | . 4 6 Fabricators . | . . . Repair Stations . | . . . Recycling Units 1 | . 1 . Scanalyzers 1 | . . 1 Garrison Access . | . . . Total Hacks 38 | . 18 20 Successful 26 | . 13 13 Failed 12 | . 5 7 Catastrophic 1 | . . 1 Database Lockouts . | . . . Manual 19 | . 12 7 Terminals 32 | . 16 16 Fabricators . | . . . Repair Stations . | . . . Recycling Units 2 | . 2 . Scanalyzers 4 | . . 4 Garrison Access . | . . . Terminal Hacks 12 | . 4 8 Prototype ID Bank 1 | . 1 . Branch Access Points 1 | . . 1 Emergency Access Points 1 | . . 1 Terminal Index 1 | . . 1 Scanalyzer Index 1 | . . 1 Unreport Threat 2 | . . 2 Hauler Manifests 1 | . 1 . Registered Components 1 | . . 1 Zone Layout 3 | . 2 1 Fabricator Hacks . | . . . Repair Station Hacks . | . . . Recycling Unit Hacks 2 | . 2 . Report Inventory 1 | . 1 . Retrieve Components 1 | . 1 . Scanalyzer 1 | . . 1 Retrieve Study 1 | . . 1 Garrison Access Hacks . | . . . Unauthorized Hacks 11 | . 7 4 Terminals 11 | . 7 4 Assimilate 2 | . 2 . Botnet 8 | . 4 4 Operators 1 | . 1 . Fabricators . | . . . Repair Stations . | . . . Recycling Units . | . . . Scanalyzers . | . . . Garrison Access . | . . . Data Cores Recovered . | . . . Used . | . . . Hacking Detections 11 | . 5 6 Full Trace Events 3 | . 1 2 Feedback Events . | . . . Feedback Blocked . | . . . Robot Schematics Acquired . | . . . Robots Built . | . . . Authchips . | . . . Time . | . . . Total Robot Build Rating . | . . . Part Schematics Acquired . | . . . Parts Built . | . . . Authchips . | . . . Time . | . . . Total Part Build Rating . | . . . Part Studies Acquired 1 | . . 1 Parts Repaired . | . . . Time . | . . . Parts Recycled . | . . . Recycled Matter . | . . . Retrieved Matter . | . . . Retrieved Components 3 | . 3 . Parts Scanalyzed . | . . . Part Schematics Acquired . | . . . Parts Damaged . | . . . Bothacking | -11 -10 -9 ------------ Run | Yrd Mat Mat Used RIF Installer . | . . . Robots Hacked . | . . . Non-combat . | . . . Combat . | . . . Robot Hacks Applied . | . . . Relay Couplers Released . | . . . Fabnet Peak Effective % . | . . . Robots Rewired . | . . . Allies Hacked . | . . . Hacks Repelled . | . . . Allies | -11 -10 -9 -------- Run | Yrd Mat Mat Total Allies 1 | . 1 . Largest Group 1 | . 1 1 Highest-Rated Group 10 | . 10 10 Highest-Rated Ally 10 | . 10 10 Total Orders . | . . . Ally Attacks . | . . . Total Damage . | . . . Kills . | . . . Allies Corrupted . | . . . Allies Melted . | . . . Intel | -11 -10 -9 ------- Run | Yrd Mat Mat Active Infowar (turns) 762 | 60 506 196 Sensors 145 | . 57 88 Structural 196 | . . 196 Seismic 509 | 60 449 . Robot Analysis Total . | . . . Derelict Logs Recovered . | . . . Drone Launches . | . . . Drone Recoveries . | . . . Exploration | -11 -10 -9 ------------- Run | Yrd Mat Mat Turns Passed 1388 | 144 524 720 Spaces Moved 622 | 58 345 219 Core . | . . . Treads 184 | . . 184 Legs 85 | 58 27 . Wheels 353 | . 318 35 Hover . | . . . Flight . | . . . Fastest Speed 110 | 120 110 110 Average Speed 150 | 120 110 221 Slowest Speed 240 | 120 120 240 Overloaded Moves . | . . . Propulsion Burnouts . | . . . Robots Hopped . | . . . Potential Cave-ins . | . . . Cave-ins Triggered . | . . . Exploration Rate (%) 24 | 3 49 21 Regions Visited 2 Branch Regions . Pre-discovered Areas . | . . . Known Exits Taken . | . . . Unknown Exits Taken 2 | 1 1 . Scrap Searched . | . . . Spaces Dug 1 | . 1 . Terrain Destroyed 2 | . 1 1 Melee . | . . . Projectile 2 | . 1 1 AOE . | . . . Terrain Rammed . | . . . Walls Destroyed . | . . . Machines Disabled . | . . . Actions | -11 -10 -9 --------- Run | Yrd Mat Mat Total 884 | 112 436 336 Wait 118 | 41 49 28 Move 620 | 57 344 219 Hop . | . . . Pick Up 24 | 2 11 11 Fast Attach 4 | 1 . 3 Attach 12 | . 1 11 Detach . | . . . Swap 10 | . 7 3 Drop 2 | 1 1 . Fire 89 | 10 23 56 Melee 5 | . . 5 Ram . | . . . Kick . | . . . Crush . | . . . Escape Stasis . | . . . Rewire . | . . . Trap . | . . . Miscellaneous . | . . . Route ------- -11/Scrapyard -10/Materials (discovered 3 exits: *Mat / [*Min x2]) -9/Materials (discovered 4 exits: Min x2 / Sto x2) History --------- Turn | Location | Event 1 | -11/Scrapyard | Discovered new exit (range 3) 145 | -11/Scrapyard | Entered Materials 224 | -10/Materials | Discovered new exit (range 17) 258 | -10/Materials | Discovered new exit (range 15) 307 | -10/Materials | Build established: Mutant 454 | -10/Materials | Discovered new exit (range 16) 669 | -10/Materials | Entered another Materials area 669 | -9/Materials | Accompanied by 1 ally 669 | -9/Materials | Evolved 2 slots: Utility x2 742 | -9/Materials | Lost 3 parts (1n2w) 779 | -9/Materials | Core integrity fell below 50% 822 | -9/Materials | Lost 4 parts (1p1u2w) 835 | -9/Materials | Destroyed 7 combat bots 991 | -9/Materials | Identified exit to Mines 991 | -9/Materials | Identified exit to Storage 1085 | -9/Materials | Core integrity fell below 20% 1389 | -9/Materials | Destroyed by G-34 Mercenary with Small Laser Last Messages --------------- 01309_ ALERT: Suspicious activity at Scanalyzer M001. Dispatching Investigation squad. 01317_ S-10 Pest destroyed. 01318_ Lgt. Treads+ destroyed. 01326_ S-10 Pest destroyed. 01326_ Switching to secondary target: S-10 Pest. 01332_ S-10 Pest destroyed. 01332_ Switching to secondary target: S-10 Pest. 01337_ Acquired 18 matter. 01340_ S-10 Pest destroyed. 01344_ Acquired 19 matter. 01345_ Med. Armor Plating destroyed. 01349_ Destroyed Flight Unit. 01355_ S-10 Pest suffers critical hit (Destroy). 01355_ Destroyed Lgt. Ion Engine. 01358_ S-10 Pest destroyed. 01361_ Acquired 14 matter. 01363_ Acquired 17 matter. 01364_ K-01 Serf collects debris. 01385_ G-34 Mercenary destroyed. Map ----- +----------------------------------------------------+ | ?????# #??? ###### ## #?#### | | ?#####+##+#### #????# ## ##???# | | ?# ####+#############+### #???# | | ?#"" """ """ # #???# | | ?#"Y """ """ #??????????????????????????????? | | ?#"" """["""!#??????????????????????????????? | | ?# % %= #??????????????????????????????? | | ?######/######??????????????????????????????? | | ?????# #??????????????????????????????????? | | ?????# #??????????????????????????????????? | | ?????# #??????????????????????????????????? | | ?????# #??????????????????????????????????? | | ????## ##?????????????????????????????????? | | ????# #?????????????????????????????????? | | ????# "" #?????????????????????????????????? | | ????# T #?????????????????????????????????? | | ????# #?????????????????????????????????? | | ????# #?????????????????????????????????? | | ????### ###???????? #???????????????????????? | | ??????# #??########+##??????????????????????? | | ??????# #### #??????????????????????? | | ??????# + #??????????????????????? | | ??????# # "" #??????????????????????? | | ??????# # """ """ #??????????????????????? | | ??????# + """ S" #??????????????????????? | | ??????# #### """["""@#??????????????????????? | | ??????# #??# **"""g#??????????????????????? | | ??????# #??# *=%=* *#??????????????????????? | | ??????# #??#####;#####??????????????????????? | | ??????# ??????# =#??????????????????????????? | | ??????+ ??????#==#??????????????????????????? | | ??????# ?????? =#??????????????????????????? | | ??????# ????? #????????????[?????????????? | | ??????# ???? #??????????????????????????? | | ??????? ??? ??????????????????????????? | | ??????? ?? ??????????????????????????? | | ?????????? ?????????????????????????? | | ????????? #?????????????????????????? | | ???????? ######+###?????????????????????????? | | ???????? ???????????????????????????????????? | | ????????????!???????????????????????????????? | | ????????????????????????????????????????????? | | ????????????????????????????????????????????? | | ????????????????????????????????????????????? | | ????????????????????????????????????????????? | | ????????????????????????????????????????????? | | ????????????????????????????????????????????? | | ????????????????????????????????????????????? | | ????????????????????????????????????????????? | | ????????????????????????????????????????????? | +----------------------------------------------------+ Best States ------------- Heat Dissipation 48 Energy Generation 10 Energy Capacity 250 Matter Stores 300 Matter Capacity 300 Sight Range 16 Robot Scan Range 14 Terrain Scan Density 10 Armor Coverage 225 Evasion (%) 55 Recoil Reduction 2 Item Schematics ----------------- None Robot Schematics ------------------ None Fabricated ------------ Nothing Repaired ---------- Nothing Studied --------- Lgt. Treads | -9/Materials | Hacked Alien Tech Used ----------------- None Achievements -------------- None Challenges ------------ None Game ------ Seed ChromionAssaultBay Manual? 0 Play Time 00:18:20 Cumulative 52.6 hours Start 2025.12.30 @ 22:06:33 End 2025.12.30 @ 22:20:58 Sessions 1 Manual Loads 0 Difficulty Rogue Special Mode None Game No. 70 Rogue 70 Adventurer 0 Explorer 0 Win Type - Total 1 Types 1/0/0/0/0/0/0/0/0/0 Lore% 39 Gallery% 45 Achievement% 35 Wizard Run 0 Options --------- Layout 2 ASCII 0 Keyboard 1 Movement Numpad Keybinds 0 Fullscreen 2 Font 24/Smallcaps Map View 50x44 Zoom Use 0% Tactical HUD 1 Map Filters NONE Filters NONE Steam 1 RUN: 114bc743-34ec-4438-ba9e-4d91c735a311